[Event "Early-Titled-Tuesday-Blitz-July-09-2024"]
[Site "Chess.com"]
[Date "2024.07.09"]
[Round "4"]
[White "campochess"]
[Black "amylazy"]
[Result "0-1"]
[WhiteElo "2254"]
[BlackElo "2489"]
[TimeControl "180+1"]
[EndTime "8:35:44 PDT"]
[Termination "amylazy won by resignation"]

1. f4 {[%clk 0:02:59.7]} 1... d5 {[%clk 0:02:56.3]} 2. Nf3 {[%clk 0:02:59.2]}
2... Nc6 {[%clk 0:02:51.3]} 3. b3 {[%clk 0:02:59]} 3... Bf5 {[%clk 0:02:49.3]}
4. Bb2 {[%clk 0:02:58.2]} 4... e6 {[%clk 0:02:49.6]} 5. e3 {[%clk 0:02:55.6]}
5... Nf6 {[%clk 0:02:49.8]} 6. Be2 {[%clk 0:02:50.8]} 6... Be7 {[%clk 0:02:50]}
7. O-O {[%clk 0:02:50.4]} 7... O-O {[%clk 0:02:50]} 8. Nc3 {[%clk 0:02:50.2]}
8... h6 {[%clk 0:02:45.9]} 9. a3 {[%clk 0:02:45.4]} 9... d4 {[%clk 0:02:44]} 10.
exd4 {[%clk 0:02:36.3]} 10... Nxd4 {[%clk 0:02:44.9]} 11. Bd3 {[%clk 0:02:31.6]}
11... Bxd3 {[%clk 0:02:43.7]} 12. cxd3 {[%clk 0:02:30.8]} 12... c5 {[%clk
0:02:42.6]} 13. Ne5 {[%clk 0:02:30.6]} 13... Rc8 {[%clk 0:02:35]} 14. Rc1 {[%clk
0:02:27.8]} 14... Qb6 {[%clk 0:02:34.1]} 15. Kh1 {[%clk 0:02:14.4]} 15... Qxb3
{[%clk 0:02:30.4]} 16. Qxb3 {[%clk 0:02:14]} 16... Nxb3 {[%clk 0:02:31.3]} 17.
Rc2 {[%clk 0:02:12.8]} 17... Rfd8 {[%clk 0:02:28.5]} 18. Ne4 {[%clk 0:02:10.9]}
18... Nxe4 {[%clk 0:02:21.7]} 19. dxe4 {[%clk 0:02:09.9]} 19... Rxd2 {[%clk
0:02:22.1]} 20. Rxd2 {[%clk 0:02:08]} 20... Nxd2 {[%clk 0:02:23]} 21. Re1 {[%clk
0:02:08]} 21... c4 {[%clk 0:02:22.7]} 22. Bc3 {[%clk 0:02:06.4]} 22... Nb3
{[%clk 0:02:21.2]} 23. h3 {[%clk 0:02:06.3]} 23... Bxa3 {[%clk 0:02:21.2]} 24.
Rd1 {[%clk 0:02:02.4]} 24... Nc5 {[%clk 0:02:19]} 25. Nd7 {[%clk 0:01:58.3]}
25... Nxe4 {[%clk 0:02:15.8]} 26. Be5 {[%clk 0:01:46.5]} 26... Nf2+ {[%clk
0:02:14.7]} 0-1

[Event "Early-Titled-Tuesday-Blitz-July-09-2024"]
[Site "Chess.com"]
[Date "2024.07.09"]
[Round "4"]
[White "kleinebeer98"]
[Black "atbenina64"]
[Result "0-1"]
[WhiteElo "2935"]
[BlackElo "2804"]
[TimeControl "180+1"]
[EndTime "8:36:06 PDT"]
[Termination "atbenina64 won by resignation"]

1. e4 {[%clk 0:03:00.9]} 1... c5 {[%clk 0:02:59.6]} 2. Nf3 {[%clk 0:03:00.9]}
2... d6 {[%clk 0:02:59.3]} 3. Nc3 {[%clk 0:03:00.7]} 3... a6 {[%clk 0:02:54.5]}
4. d4 {[%clk 0:02:58.7]} 4... cxd4 {[%clk 0:02:54.8]} 5. Nxd4 {[%clk 0:02:59.2]}
5... Nf6 {[%clk 0:02:55.2]} 6. a3 {[%clk 0:02:59.1]} 6... g6 {[%clk 0:02:53.9]}
7. h3 {[%clk 0:02:57.9]} 7... Bg7 {[%clk 0:02:54.2]} 8. Bc4 {[%clk 0:02:58.6]}
8... O-O {[%clk 0:02:53.6]} 9. O-O {[%clk 0:02:59.2]} 9... Nc6 {[%clk
0:02:52.4]} 10. Nf3 {[%clk 0:02:59.6]} 10... b5 {[%clk 0:02:47.2]} 11. Ba2
{[%clk 0:02:59.7]} 11... Bb7 {[%clk 0:02:40.1]} 12. Qe2 {[%clk 0:03:00]} 12...
Rc8 {[%clk 0:02:40.3]} 13. Bg5 {[%clk 0:02:56.9]} 13... h6 {[%clk 0:02:37.7]}
14. Bh4 {[%clk 0:02:55.5]} 14... Nh5 {[%clk 0:02:36.9]} 15. Rad1 {[%clk
0:02:49.9]} 15... Bxc3 {[%clk 0:02:16.8]} 16. bxc3 {[%clk 0:02:49.6]} 16... Qa5
{[%clk 0:02:17.3]} 17. e5 {[%clk 0:02:44.4]} 17... Nf4 {[%clk 0:02:03.4]} 18.
Qe4 {[%clk 0:02:41.6]} 18... dxe5 {[%clk 0:02:00.4]} 19. Nxe5 {[%clk 0:02:35.1]}
19... Nxe5 {[%clk 0:01:53.6]} 20. Qxb7 {[%clk 0:02:29.6]} 20... Ne2+ {[%clk
0:01:37.1]} 21. Kh1 {[%clk 0:02:28.9]} 21... Nxc3 {[%clk 0:01:37.6]} 22. Rde1
{[%clk 0:02:11.5]} 22... Rc7 {[%clk 0:01:35.2]} 23. Bxf7+ {[%clk 0:02:02.6]}
23... Kxf7 {[%clk 0:01:27.1]} 0-1

[Event "Early-Titled-Tuesday-Blitz-July-09-2024"]
[Site "Chess.com"]
[Date "2024.07.09"]
[Round "4"]
[White "ACollins05"]
[Black "FM_Kappeler"]
[Result "1-0"]
[WhiteElo "2495"]
[BlackElo "2276"]
[TimeControl "180+1"]
[EndTime "8:36:10 PDT"]
[Termination "ACollins05 won by resignation"]

1. Nf3 {[%clk 0:03:00.9]} 1... Nf6 {[%clk 0:02:59.5]} 2. e3 {[%clk 0:02:58.6]}
2... g6 {[%clk 0:02:59.5]} 3. b3 {[%clk 0:02:57.2]} 3... Bg7 {[%clk 0:02:59.9]}
4. Bb2 {[%clk 0:02:57.4]} 4... O-O {[%clk 0:03:00.4]} 5. d4 {[%clk 0:02:56.1]}
5... d6 {[%clk 0:03:00.8]} 6. c4 {[%clk 0:02:54.6]} 6... b6 {[%clk 0:03:00.5]}
7. Nc3 {[%clk 0:02:54.4]} 7... Bb7 {[%clk 0:03:00.5]} 8. Be2 {[%clk 0:02:55]}
8... Nbd7 {[%clk 0:03:00.5]} 9. O-O {[%clk 0:02:55.6]} 9... Ne4 {[%clk
0:02:55.8]} 10. Rc1 {[%clk 0:02:54.6]} 10... Nxc3 {[%clk 0:02:54.3]} 11. Bxc3
{[%clk 0:02:55.5]} 11... e6 {[%clk 0:02:50.3]} 12. b4 {[%clk 0:02:52.7]} 12...
c5 {[%clk 0:02:42.2]} 13. dxc5 {[%clk 0:02:49.4]} 13... Bxc3 {[%clk 0:02:41.1]}
14. Rxc3 {[%clk 0:02:50.3]} 14... dxc5 {[%clk 0:02:40.8]} 15. Rd3 {[%clk
0:02:50.1]} 15... cxb4 {[%clk 0:02:11.2]} 16. Rxd7 {[%clk 0:02:42.4]} 16... Qc8
{[%clk 0:02:11.1]} 17. Qd6 {[%clk 0:02:37.7]} 17... Be4 {[%clk 0:01:39.1]} 18.
Rd1 {[%clk 0:02:33.1]} 18... Bc2 {[%clk 0:01:30.1]} 19. Rd2 {[%clk 0:02:32.1]}
19... b3 {[%clk 0:01:30.2]} 20. axb3 {[%clk 0:02:30.9]} 20... Bxb3 {[%clk
0:01:30.3]} 21. Ne5 {[%clk 0:02:29.4]} 21... Ba4 {[%clk 0:01:23.3]} 22. Rc7
{[%clk 0:02:28]} 22... Qb8 {[%clk 0:01:19.9]} 23. Bf3 {[%clk 0:02:12]} 1-0

[Event "Early-Titled-Tuesday-Blitz-July-09-2024"]
[Site "Chess.com"]
[Date "2024.07.09"]
[Round "4"]
[White "GM_Huschenbeth"]
[Black "mouseslips_are_the_best"]
[Result "1-0"]
[WhiteElo "2517"]
[BlackElo "2320"]
[TimeControl "180+1"]
[EndTime "8:36:27 PDT"]
[Termination "GM_Huschenbeth won by resignation"]

1. e4 {[%clk 0:03:00.9]} 1... e6 {[%clk 0:03:00.2]} 2. d4 {[%clk 0:02:59.9]}
2... d5 {[%clk 0:03:00.7]} 3. Nc3 {[%clk 0:02:56.5]} 3... Nf6 {[%clk 0:02:59.3]}
4. Bg5 {[%clk 0:02:56.2]} 4... dxe4 {[%clk 0:02:57.4]} 5. Nxe4 {[%clk
0:02:57.1]} 5... Nbd7 {[%clk 0:02:52.1]} 6. Nf3 {[%clk 0:02:55]} 6... h6 {[%clk
0:02:51.7]} 7. Nxf6+ {[%clk 0:02:52.5]} 7... Nxf6 {[%clk 0:02:52.6]} 8. Be3
{[%clk 0:02:52.7]} 8... Be7 {[%clk 0:02:48.2]} 9. Bd3 {[%clk 0:02:52.3]} 9...
O-O {[%clk 0:02:45.9]} 10. Qe2 {[%clk 0:02:52.2]} 10... b6 {[%clk 0:02:46.1]}
11. O-O-O {[%clk 0:02:52.2]} 11... Bb7 {[%clk 0:02:46.7]} 12. Kb1 {[%clk
0:02:52.6]} 12... Bd6 {[%clk 0:02:46.3]} 13. Ne5 {[%clk 0:02:50.1]} 13... Nd5
{[%clk 0:02:43.8]} 14. Bc1 {[%clk 0:02:45.5]} 14... Qf6 {[%clk 0:02:40.6]} 15.
Nd7 {[%clk 0:02:42]} 15... Qh4 {[%clk 0:02:25.5]} 16. g3 {[%clk 0:02:26.1]}
16... Qe7 {[%clk 0:02:09.1]} 17. Nxf8 {[%clk 0:02:25.6]} 17... Rxf8 {[%clk
0:02:10]} 18. Be4 {[%clk 0:02:20.8]} 18... Ba3 {[%clk 0:01:48.8]} 19. c4 {[%clk
0:02:09.8]} 19... Ba6 {[%clk 0:01:39.3]} 20. Bd3 {[%clk 0:01:50.8]} 1-0

[Event "Early-Titled-Tuesday-Blitz-July-09-2024"]
[Site "Chess.com"]
[Date "2024.07.09"]
[Round "4"]
[White "FREDERICKtheMATE"]
[Black "EsmeraldasAnderson03"]
[Result "1-0"]
[WhiteElo "2744"]
[BlackElo "2533"]
[TimeControl "180+1"]
[EndTime "8:36:34 PDT"]
[Termination "FREDERICKtheMATE won by resignation"]

1. e4 {[%clk 0:03:00.9]} 1... c5 {[%clk 0:02:59.7]} 2. Nf3 {[%clk 0:03:00.3]}
2... d6 {[%clk 0:02:59.7]} 3. c3 {[%clk 0:02:59.9]} 3... Nf6 {[%clk 0:02:59.1]}
4. h3 {[%clk 0:02:59.3]} 4... Nc6 {[%clk 0:02:57.3]} 5. Bd3 {[%clk 0:02:58.4]}
5... e6 {[%clk 0:02:56]} 6. Bc2 {[%clk 0:02:58.4]} 6... Bd7 {[%clk 0:02:51.6]}
7. O-O {[%clk 0:02:58.6]} 7... Be7 {[%clk 0:02:51.3]} 8. d4 {[%clk 0:02:58.6]}
8... cxd4 {[%clk 0:02:52.2]} 9. cxd4 {[%clk 0:02:58.2]} 9... Nb4 {[%clk
0:02:52.5]} 10. Nc3 {[%clk 0:02:58.4]} 10... Nxc2 {[%clk 0:02:51.2]} 11. Qxc2
{[%clk 0:02:59.3]} 11... O-O {[%clk 0:02:49.6]} 12. Bg5 {[%clk 0:02:50]} 12...
Bc6 {[%clk 0:02:48.2]} 13. Rad1 {[%clk 0:02:40]} 13... d5 {[%clk 0:02:39.3]} 14.
Bxf6 {[%clk 0:02:35.5]} 14... Bxf6 {[%clk 0:02:40.2]} 15. e5 {[%clk 0:02:35.4]}
15... Be7 {[%clk 0:02:38.9]} 16. g3 {[%clk 0:02:27.9]} 16... Rc8 {[%clk
0:02:37.1]} 17. Qe2 {[%clk 0:02:27.2]} 17... a6 {[%clk 0:02:19.2]} 18. a3 {[%clk
0:02:21.2]} 18... b5 {[%clk 0:02:14.2]} 19. b4 {[%clk 0:02:19.4]} 19... a5
{[%clk 0:02:14.3]} 20. Nxb5 {[%clk 0:02:19.3]} 20... axb4 {[%clk 0:02:14]} 21.
axb4 {[%clk 0:02:05]} 21... Bxb4 {[%clk 0:02:12.2]} 22. Na7 {[%clk 0:02:04.7]}
22... Rc7 {[%clk 0:02:11.6]} 23. Nxc6 {[%clk 0:01:56.8]} 23... Rxc6 {[%clk
0:02:12.5]} 24. h4 {[%clk 0:01:56.1]} 24... Qe7 {[%clk 0:01:54.2]} 25. Kg2
{[%clk 0:01:52.9]} 25... Rfc8 {[%clk 0:01:52.4]} 26. Rb1 {[%clk 0:01:47.9]}
26... h6 {[%clk 0:01:52]} 27. Qb5 {[%clk 0:01:46.1]} 27... Bc3 {[%clk
0:01:50.4]} 28. Rb3 {[%clk 0:01:39.4]} 28... Bb4 {[%clk 0:01:36]} 29. Qxb4
{[%clk 0:01:35.4]} 1-0

[Event "Early-Titled-Tuesday-Blitz-July-09-2024"]
[Site "Chess.com"]
[Date "2024.07.09"]
[Round "4"]
[White "Aslanov_Umid"]
[Black "Vaporwaffle94"]
[Result "1-0"]
[WhiteElo "2639"]
[BlackElo "2223"]
[TimeControl "180+1"]
[EndTime "8:36:45 PDT"]
[Termination "Aslanov_Umid won by resignation"]

1. e4 {[%clk 0:03:00.9]} 1... e5 {[%clk 0:03:00.2]} 2. Nf3 {[%clk 0:03:01.2]}
2... Nc6 {[%clk 0:03:00.6]} 3. Bc4 {[%clk 0:03:01.7]} 3... Nf6 {[%clk
0:03:00.1]} 4. d3 {[%clk 0:03:01.7]} 4... d5 {[%clk 0:03:00]} 5. exd5 {[%clk
0:03:01.5]} 5... Nxd5 {[%clk 0:03:00.9]} 6. O-O {[%clk 0:03:02.1]} 6... Nb6
{[%clk 0:03:00.9]} 7. Bb3 {[%clk 0:03:00.1]} 7... Be7 {[%clk 0:02:59.3]} 8. h3
{[%clk 0:02:58.7]} 8... O-O {[%clk 0:02:59.3]} 9. Re1 {[%clk 0:02:59.4]} 9...
Bd6 {[%clk 0:02:51.9]} 10. Bg5 {[%clk 0:02:44.9]} 10... Qd7 {[%clk 0:02:51.2]}
11. c3 {[%clk 0:02:42.7]} 11... Qf5 {[%clk 0:02:49.7]} 12. Bc2 {[%clk 0:02:38]}
12... Qg6 {[%clk 0:02:49.3]} 13. d4 {[%clk 0:02:11.2]} 13... Bf5 {[%clk
0:02:48.1]} 14. Bxf5 {[%clk 0:02:01.3]} 14... Qxf5 {[%clk 0:02:49]} 15. dxe5
{[%clk 0:01:55.5]} 15... Nxe5 {[%clk 0:02:47.8]} 16. Nxe5 {[%clk 0:01:52.5]}
16... Bxe5 {[%clk 0:02:43.3]} 17. Qg4 {[%clk 0:01:51]} 17... Qxg4 {[%clk
0:02:40.5]} 18. hxg4 {[%clk 0:01:51.9]} 18... f6 {[%clk 0:02:41.2]} 19. Nd2
{[%clk 0:01:48.9]} 19... Rad8 {[%clk 0:02:40.3]} 20. Nf3 {[%clk 0:01:43.6]}
20... Bd6 {[%clk 0:02:37.4]} 21. Bh4 {[%clk 0:01:32.7]} 21... Nc4 {[%clk
0:02:35.7]} 22. b3 {[%clk 0:01:31.6]} 22... Ne5 {[%clk 0:02:36.1]} 23. Nd4
{[%clk 0:01:28.3]} 23... Nxg4 {[%clk 0:02:35.6]} 24. Ne6 {[%clk 0:01:28.3]}
24... Be5 {[%clk 0:02:30.3]} 25. Nxd8 {[%clk 0:01:14.5]} 25... Rxd8 {[%clk
0:02:29.7]} 26. Rad1 {[%clk 0:01:14]} 26... Rxd1 {[%clk 0:02:27.7]} 27. Rxd1
{[%clk 0:01:14.9]} 27... Bxc3 {[%clk 0:02:27.5]} 28. Rd8+ {[%clk 0:01:13.4]}
28... Kf7 {[%clk 0:02:27]} 29. Rd7+ {[%clk 0:01:14.2]} 29... Kg6 {[%clk
0:02:27]} 30. Rxc7 {[%clk 0:01:15.1]} 30... Bd4 {[%clk 0:02:20.5]} 31. Rxb7
{[%clk 0:01:13.7]} 31... Ne5 {[%clk 0:02:16.5]} 32. Bg3 {[%clk 0:01:11]} 32...
Ng4 {[%clk 0:02:07.2]} 33. Rb4 {[%clk 0:01:09.5]} 1-0

[Event "Early-Titled-Tuesday-Blitz-July-09-2024"]
[Site "Chess.com"]
[Date "2024.07.09"]
[Round "4"]
[White "ViktoriyaTarasova"]
[Black "AGW2016"]
[Result "0-1"]
[WhiteElo "2373"]
[BlackElo "2579"]
[TimeControl "180+1"]
[EndTime "8:36:52 PDT"]
[Termination "AGW2016 won by resignation"]

1. d4 {[%clk 0:03:00.9]} 1... d5 {[%clk 0:02:59.3]} 2. c4 {[%clk 0:02:59.5]}
2... e6 {[%clk 0:03:00]} 3. Nc3 {[%clk 0:02:55.4]} 3... Nf6 {[%clk 0:02:58.8]}
4. cxd5 {[%clk 0:02:55.3]} 4... exd5 {[%clk 0:02:59.1]} 5. Bg5 {[%clk
0:02:55.3]} 5... c6 {[%clk 0:02:59]} 6. Qc2 {[%clk 0:02:55.4]} 6... h6 {[%clk
0:02:57.4]} 7. Bh4 {[%clk 0:02:53.9]} 7... Be6 {[%clk 0:02:58.2]} 8. e3 {[%clk
0:02:54]} 8... Nbd7 {[%clk 0:02:58.9]} 9. Bd3 {[%clk 0:02:54.4]} 9... g5 {[%clk
0:02:58.9]} 10. Bg3 {[%clk 0:02:54.4]} 10... Nh5 {[%clk 0:02:59.6]} 11. Nge2
{[%clk 0:02:53.2]} 11... Nxg3 {[%clk 0:02:48.3]} 12. Nxg3 {[%clk 0:02:52.8]}
12... Qc7 {[%clk 0:02:49]} 13. Nf5 {[%clk 0:02:45.9]} 13... h5 {[%clk
0:02:43.3]} 14. O-O-O {[%clk 0:02:42.3]} 14... O-O-O {[%clk 0:02:42.9]} 15. Kb1
{[%clk 0:02:38.1]} 15... Kb8 {[%clk 0:02:42.1]} 16. f3 {[%clk 0:02:32.5]} 16...
h4 {[%clk 0:02:41.3]} 17. h3 {[%clk 0:02:31.3]} 17... Nf6 {[%clk 0:02:41.4]} 18.
Na4 {[%clk 0:02:21.5]} 18... Nh5 {[%clk 0:02:34.8]} 19. Rhe1 {[%clk 0:02:19.2]}
19... Ng3 {[%clk 0:02:31.3]} 20. Nxg3 {[%clk 0:02:15.1]} 20... Qxg3 {[%clk
0:02:30.8]} 21. Re2 {[%clk 0:02:03.9]} 21... Be7 {[%clk 0:02:26.8]} 22. Nc5
{[%clk 0:02:02.3]} 22... Bc8 {[%clk 0:02:20.8]} 23. Ka1 {[%clk 0:01:56.2]} 23...
Rhe8 {[%clk 0:02:19.9]} 24. b4 {[%clk 0:01:55.9]} 24... Bf6 {[%clk 0:02:15]} 25.
Rb1 {[%clk 0:01:52.9]} 25... Rxe3 {[%clk 0:02:14.5]} 26. Rxe3 {[%clk 0:01:24.4]}
26... Bxd4+ {[%clk 0:02:12.7]} 27. Rb2 {[%clk 0:01:25.1]} 27... Bxe3 {[%clk
0:02:12.9]} 28. Nb3 {[%clk 0:00:55.9]} 28... Bf4 {[%clk 0:02:09.7]} 0-1

[Event "Early-Titled-Tuesday-Blitz-July-09-2024"]
[Site "Chess.com"]
[Date "2024.07.09"]
[Round "4"]
[White "JEHUBNER"]
[Black "Fh2411"]
[Result "0-1"]
[WhiteElo "2018"]
[BlackElo "2579"]
[TimeControl "180+1"]
[EndTime "8:36:57 PDT"]
[Termination "Fh2411 won by resignation"]

1. e4 {[%clk 0:03:00.9]} 1... c6 {[%clk 0:03:00]} 2. d4 {[%clk 0:03:00.7]} 2...
d5 {[%clk 0:03:00.9]} 3. Nc3 {[%clk 0:03:00]} 3... dxe4 {[%clk 0:03:00.8]} 4.
Nxe4 {[%clk 0:03:00.1]} 4... Nf6 {[%clk 0:03:01.4]} 5. Nxf6+ {[%clk 0:02:57.5]}
5... exf6 {[%clk 0:03:02.3]} 6. Nf3 {[%clk 0:02:58.1]} 6... Bd6 {[%clk
0:03:01.4]} 7. Bd3 {[%clk 0:02:58]} 7... O-O {[%clk 0:03:01.9]} 8. O-O {[%clk
0:02:58.3]} 8... Re8 {[%clk 0:03:02.5]} 9. Be3 {[%clk 0:02:49.5]} 9... Nd7
{[%clk 0:02:44]} 10. c3 {[%clk 0:02:46.1]} 10... Nf8 {[%clk 0:02:43.9]} 11. h3
{[%clk 0:02:45.9]} 11... Be6 {[%clk 0:02:42.9]} 12. Bc2 {[%clk 0:02:45.7]} 12...
Qd7 {[%clk 0:02:43.1]} 13. Qd3 {[%clk 0:02:45.4]} 13... g6 {[%clk 0:02:07.3]}
14. Rfe1 {[%clk 0:02:35.6]} 14... Bxh3 {[%clk 0:01:55.5]} 15. gxh3 {[%clk
0:02:26.8]} 15... Qxh3 {[%clk 0:01:56.4]} 16. Bd2 {[%clk 0:02:26.9]} 16... Ne6
{[%clk 0:01:41.3]} 17. Ne5 {[%clk 0:02:26]} 17... Qh4 {[%clk 0:01:31.2]} 18. Re4
{[%clk 0:02:03.3]} 18... Qh5 {[%clk 0:01:13.1]} 19. Nf3 {[%clk 0:01:55.7]} 19...
Ng5 {[%clk 0:01:08.5]} 20. Rae1 {[%clk 0:01:44.6]} 20... Nxf3+ {[%clk
0:00:41.9]} 0-1

[Event "Early-Titled-Tuesday-Blitz-July-09-2024"]
[Site "Chess.com"]
[Date "2024.07.09"]
[Round "4"]
[White "2400FM"]
[Black "sanbruh"]
[Result "0-1"]
[WhiteElo "2051"]
[BlackElo "2372"]
[TimeControl "180+1"]
[EndTime "8:37:14 PDT"]
[Termination "sanbruh won by resignation"]

1. d4 {[%clk 0:01:22.5]} 1... d6 {[%clk 0:02:58.8]} 2. c4 {[%clk 0:01:22.8]}
2... Nf6 {[%clk 0:02:59.7]} 3. Nc3 {[%clk 0:01:23.1]} 3... g6 {[%clk 0:03:00.5]}
4. e4 {[%clk 0:01:23.5]} 4... Bg7 {[%clk 0:03:01.3]} 5. f3 {[%clk 0:01:23.9]}
5... O-O {[%clk 0:03:02]} 6. Bg5 {[%clk 0:01:23.7]} 6... c5 {[%clk 0:03:01.9]}
7. d5 {[%clk 0:01:23.8]} 7... a6 {[%clk 0:03:01.9]} 8. a4 {[%clk 0:01:23.7]}
8... b6 {[%clk 0:03:02]} 9. Qd2 {[%clk 0:01:23.6]} 9... Re8 {[%clk 0:03:02]} 10.
h4 {[%clk 0:01:20.5]} 10... e6 {[%clk 0:02:55.2]} 11. h5 {[%clk 0:01:20.3]}
11... exd5 {[%clk 0:02:55.2]} 12. cxd5 {[%clk 0:01:20.2]} 12... Qc7 {[%clk
0:02:50.2]} 13. h6 {[%clk 0:00:51.7]} 13... Bh8 {[%clk 0:02:50.2]} 14. Qf4
{[%clk 0:00:44.6]} 14... Nbd7 {[%clk 0:02:47.2]} 15. Nh3 {[%clk 0:00:39.2]}
15... Nh5 {[%clk 0:02:43.7]} 16. Qd2 {[%clk 0:00:36.7]} 16... c4 {[%clk
0:02:41.2]} 17. Be2 {[%clk 0:00:33.6]} 17... Ng3 {[%clk 0:02:39.9]} 18. Rh2
{[%clk 0:00:31.1]} 18... Ne5 {[%clk 0:02:35.9]} 19. O-O-O {[%clk 0:00:25.5]}
19... Nxe2+ {[%clk 0:02:35.2]} 20. Qxe2 {[%clk 0:00:20.8]} 20... Nd3+ {[%clk
0:02:35.3]} 21. Kc2 {[%clk 0:00:20.9]} 21... b5 {[%clk 0:02:34.4]} 22. Nf4
{[%clk 0:00:10.7]} 22... b4 {[%clk 0:02:32.6]} 23. Nxd3 {[%clk 0:00:07]} 23...
cxd3+ {[%clk 0:02:32.6]} 24. Rxd3 {[%clk 0:00:07.8]} 24... bxc3 {[%clk
0:02:33.5]} 25. bxc3 {[%clk 0:00:08.6]} 25... Qc4 {[%clk 0:02:30.4]} 26. e5
{[%clk 0:00:07.2]} 26... Bxe5 {[%clk 0:02:28.4]} 0-1

[Event "Early-Titled-Tuesday-Blitz-July-09-2024"]
[Site "Chess.com"]
[Date "2024.07.09"]
[Round "4"]
[White "Viacheslav92"]
[Black "GMAkobianSTL"]
[Result "1-0"]
[WhiteElo "2585"]
[BlackElo "2813"]
[TimeControl "180+1"]
[EndTime "8:37:18 PDT"]
[Termination "Viacheslav92 won on time"]

1. d4 {[%clk 0:03:00.9]} 1... d5 {[%clk 0:02:40.4]} 2. Bg5 {[%clk 0:02:57.9]}
2... c5 {[%clk 0:02:39.3]} 3. dxc5 {[%clk 0:02:56]} 3... Nc6 {[%clk 0:02:38]} 4.
e4 {[%clk 0:02:54.8]} 4... d4 {[%clk 0:02:31]} 5. c3 {[%clk 0:02:48.9]} 5... Nf6
{[%clk 0:02:19.8]} 6. Bxf6 {[%clk 0:02:47.9]} 6... exf6 {[%clk 0:02:15.1]} 7.
Nf3 {[%clk 0:02:35]} 7... Bxc5 {[%clk 0:02:13.4]} 8. Bb5 {[%clk 0:02:22.7]} 8...
dxc3 {[%clk 0:01:53.3]} 9. Qxd8+ {[%clk 0:02:21]} 9... Kxd8 {[%clk 0:01:51.4]}
10. Nxc3 {[%clk 0:02:19]} 10... Bb4 {[%clk 0:01:16.3]} 11. O-O-O+ {[%clk
0:02:17.5]} 11... Kc7 {[%clk 0:01:00]} 12. Nd5+ {[%clk 0:02:14.5]} 12... Kb8
{[%clk 0:00:48.2]} 13. Bxc6 {[%clk 0:02:14.1]} 13... bxc6 {[%clk 0:00:48.1]} 14.
Nxb4 {[%clk 0:02:14.5]} 14... Kc7 {[%clk 0:00:48.4]} 15. a3 {[%clk 0:02:06.1]}
15... Be6 {[%clk 0:00:26.4]} 16. Nd4 {[%clk 0:01:59.3]} 16... c5 {[%clk
0:00:01.4]} 17. Nxe6+ {[%clk 0:01:55.3]} 1-0

[Event "Early-Titled-Tuesday-Blitz-July-09-2024"]
[Site "Chess.com"]
[Date "2024.07.09"]
[Round "4"]
[White "Bkmzzzzz"]
[Black "GMAneta"]
[Result "0-1"]
[WhiteElo "2424"]
[BlackElo "2637"]
[TimeControl "180+1"]
[EndTime "8:37:19 PDT"]
[Termination "GMAneta won by resignation"]

1. e4 {[%clk 0:03:00.9]} 1... c5 {[%clk 0:02:58.9]} 2. Nf3 {[%clk 0:02:59.8]}
2... Nc6 {[%clk 0:02:57.4]} 3. Bb5 {[%clk 0:02:58.7]} 3... Qc7 {[%clk
0:02:56.2]} 4. O-O {[%clk 0:02:57.4]} 4... Nf6 {[%clk 0:02:56.2]} 5. Re1 {[%clk
0:02:56.8]} 5... a6 {[%clk 0:02:55.2]} 6. Bxc6 {[%clk 0:02:56.5]} 6... Qxc6
{[%clk 0:02:54.8]} 7. Nc3 {[%clk 0:02:56.4]} 7... e6 {[%clk 0:02:53.7]} 8. d4
{[%clk 0:02:55.8]} 8... d5 {[%clk 0:02:52]} 9. Ne5 {[%clk 0:02:28.6]} 9... Qd6
{[%clk 0:02:49.6]} 10. exd5 {[%clk 0:02:28.7]} 10... Nxd5 {[%clk 0:02:48.6]} 11.
dxc5 {[%clk 0:02:24.6]} 11... Nxc3 {[%clk 0:02:48.5]} 12. cxd6 {[%clk
0:02:22.2]} 12... Nxd1 {[%clk 0:02:48.5]} 13. Rxd1 {[%clk 0:02:21.7]} 13... Bd7
{[%clk 0:02:47.7]} 14. Be3 {[%clk 0:02:12.9]} 14... f6 {[%clk 0:02:46.7]} 15.
Nxd7 {[%clk 0:02:12.6]} 15... Kxd7 {[%clk 0:02:46.1]} 16. Bb6 {[%clk 0:02:11.5]}
16... Kc6 {[%clk 0:02:36.8]} 17. Bc7 {[%clk 0:02:09.3]} 17... e5 {[%clk
0:02:34.5]} 18. Rd3 {[%clk 0:02:07.3]} 18... b5 {[%clk 0:02:32.9]} 19. Rad1
{[%clk 0:02:07.6]} 19... Kd7 {[%clk 0:02:32.3]} 20. Rc3 {[%clk 0:02:00.4]} 20...
Rc8 {[%clk 0:02:30.2]} 21. Ra3 {[%clk 0:01:56.4]} 21... Ra8 {[%clk 0:02:29.7]}
22. f3 {[%clk 0:01:54.8]} 22... g6 {[%clk 0:02:28.7]} 23. Kf2 {[%clk 0:01:55.3]}
23... Bh6 {[%clk 0:02:28.2]} 24. Rc3 {[%clk 0:01:50.6]} 24... Rhe8 {[%clk
0:02:27.3]} 25. Ba5 {[%clk 0:01:48.2]} 25... Rac8 {[%clk 0:02:23.8]} 26. Rxc8
{[%clk 0:01:47.9]} 26... Rxc8 {[%clk 0:02:22.6]} 27. Bc7 {[%clk 0:01:45.7]}
27... Bf8 {[%clk 0:02:22.4]} 28. Rd3 {[%clk 0:01:44.7]} 28... Re8 {[%clk
0:02:17.8]} 29. Ke3 {[%clk 0:01:44.2]} 29... Re6 {[%clk 0:02:16.4]} 30. Ke4
{[%clk 0:01:24.6]} 30... Bxd6 {[%clk 0:02:14.4]} 31. Ba5 {[%clk 0:01:19.5]}
31... Kc6 {[%clk 0:02:11.4]} 32. Rc3+ {[%clk 0:01:19.1]} 32... Kd7 {[%clk
0:02:08.1]} 33. Kd5 {[%clk 0:01:19.3]} 33... Bb8 {[%clk 0:02:07.2]} 34. Bb4
{[%clk 0:01:17]} 34... f5 {[%clk 0:02:03.8]} 35. Re3 {[%clk 0:01:15.5]} 35...
Rc6 {[%clk 0:02:02.4]} 36. c3 {[%clk 0:01:06.6]} 36... a5 {[%clk 0:01:58.2]} 37.
Bxa5 {[%clk 0:01:02.9]} 37... Rd6+ {[%clk 0:01:57.7]} 38. Kxe5 {[%clk
0:01:00.5]} 38... Re6+ {[%clk 0:01:51.5]} 39. Kd4 {[%clk 0:00:58.6]} 39... Ba7+
{[%clk 0:01:51.6]} 0-1